bitfinex/quotes_SOLUSD_20241020
["timestamp","ask_amount","ask_price","bid_price","bid_amount"]
[1729436852277,20.9385132,159.95,159.9,6.2537]
[1729436852691,20.9385132,159.95,159.87,6.255]
[1729436852996,0.9385132,159.95,159.9,6.2538]
[1729436853199,20.9385132,159.95,159.9,6.2538]
[1729436853785,0.9385132,159.95,159.9,6.2538]
[1729436854301,0.9385132,159.95,159.92,6.2531]
[1729436854599,0.9385132,159.95,159.93,6.2525]
[1729436854801,0.9385132,159.95,159.88,6.2546]
[1729436855101,0.9385132,159.95,159.93,6.2526]
[1729436855395,0.9385132,159.95,159.93,6.2523]
[1729436856295,0.9385132,159.95,159.94,6.2523]
[1729436856704,0.9385132,159.95,159.91,6.2532]
[1729436857809,0.9385132,159.95,159.86,21.935]
[1729436857983,0.9385132,159.95,159.91,6.2531]
[1729436859189,7.1905132,159.95,159.89,6.2539]
[1729436860397,20.0,159.94,159.89,6.2539]
[1729436861106,20.0,159.92,159.86,28.1901]
[1729436861308,20.0,159.92,159.86,15.6746]
[1729436861499,26.2532,159.92,159.87,6.255]
[1729436861907,0.9385132,159.95,159.87,6.255]
[1729436862209,20.0,159.92,159.87,6.255]
[1729436862703,20.0,159.93,159.86,15.6746]
[1729436863006,20.0,159.93,159.89,6.2542]
[1729436863305,20.0,159.94,159.89,6.2542]
[1729436863514,6.2539,159.9,159.84,6.2559]
[1729436863890,38.73,159.94,159.82,6.308]
[1729436864097,6.2538,159.91,159.84,6.2559]
[1729436864497,6.2531,159.92,159.86,6.2553]
[1729436864710,20.0,159.94,159.87,6.2548]
[1729436864711,26.2527,159.94,159.87,6.2548]
[1729436865009,20.0,159.94,159.87,6.2548]
[1729436865181,0.9385132,159.95,159.87,6.2548]
[1729436865585,6.253,159.93,159.87,6.2548]
[1729436865807,20.0,159.92,159.87,6.2548]
[1729436867213,20.0,159.92,159.82,6.308]
[1729436867403,27.1904132,159.95,159.89,6.254]
[1729436867581,20.0,159.93,159.87,6.2547]
[1729436868209,20.0,159.93,159.83,23.776884]
[1729436868411,20.0,159.93,159.87,6.2547]
[1729436869600,26.43907388,159.93,159.87,6.2547]
[1729436870112,6.2535,159.91,159.83,6.2566]
[1729436870421,6.2535,159.91,159.85,6.2555]
[1729436871112,6.2535,159.91,159.82,6.308]
[1729436871309,7.1918208,159.91,159.82,6.308]
[1729436871503,7.1918208,159.91,159.85,6.2555]
[1729436871899,7.1918208,159.91,159.82,6.308]
[1729436872215,7.1918208,159.91,159.86,6.2554]
[1729436873219,7.1918208,159.91,159.85,6.2554]
[1729436874113,6.2539,159.9,159.85,6.2554]
[1729436874320,6.2545,159.89,159.83,6.2563]
[1729436874493,6.2553,159.87,159.82,6.308]
[1729436875003,20.0,159.9,159.82,6.308]
[1729436875198,6.2549,159.88,159.82,12.5649]
[1729436875394,7.19334726,159.88,159.82,12.5649]
[1729436875816,6.2554,159.87,159.82,6.308]
[1729436876619,0.93844726,159.88,159.83,6.2563]
[1729436876810,0.93844726,159.88,159.84,6.2559]
[1729436877301,0.93844726,159.88,159.82,6.308]
[1729436877498,0.93844726,159.88,159.85,6.2557]
[1729436878207,0.93844726,159.88,159.84,6.2561]
[1729436879812,0.93844726,159.88,159.85,6.2558]
[1729436880113,0.93844726,159.88,159.87,6.255]
[1729436881118,0.93844726,159.88,159.87,21.5314]
[1729436882219,6.43620019,159.97,159.88,6.6368]
[1729436883119,7.37426287,159.97,159.88,6.6368]
[1729436883326,7.37426287,159.97,159.92,6.2527]
[1729436883499,0.93806268,159.97,159.88,6.6368]
[1729436883703,0.93806268,159.97,159.89,0.1]
[1729436884019,0.93806268,159.97,159.96,6.2515]
[1729436884521,7.78643139,160.01,159.95,15.2764]
[1729436884825,7.78643139,160.03,159.95,21.9132]
[1729436885125,7.78643139,160.03,159.99,6.2503]
[1729436885327,0.93768168,160.03,159.95,21.9132]
[1729436885829,0.93768168,160.03,159.99,6.25]
[1729436886200,6.2498,160.01,159.95,21.9132]
[1729436886402,20.0,160.01,159.95,15.2764]
[1729436886598,0.93768168,160.03,159.95,15.2764]
[1729436886902,6.2499,160.01,159.95,15.2764]
[1729436887226,20.0,160.0,159.95,15.2764]
[1729436887526,20.93787085,160.0,159.95,15.2764]
[1729436887927,6.2511,159.98,159.95,15.2764]
[1729436888225,6.2504,159.99,159.95,15.2764]
[1729436888801,6.2504,159.99,159.93,6.2526]
[1729436890299,20.0,159.99,159.92,6.2531]
[1729436890497,20.0,159.99,159.93,6.2524]
[1729436890703,20.0,159.99,159.91,21.9132]
[1729436890921,20.93787085,160.0,159.91,21.9132]
[1729436891116,20.0,159.97,159.91,28.1666]
[1729436891428,20.0,159.97,159.92,6.253]
[1729436892731,20.93797661,159.97,159.92,6.253]
[1729436896609,6.2516,159.96,159.91,21.9132]
[1729436896912,6.2516,159.96,159.91,28.1666]
[1729436897306,20.93797661,159.97,159.91,28.1666]
[1729436897307,7.18907661,159.97,159.91,28.1666]
[1729436898439,7.18907661,159.97,159.92,6.253]
[1729436900812,20.0,159.96,159.91,28.1666]
[1729436904928,20.0,159.96,159.92,6.2529]
[1729436905459,0.93797661,159.97,159.91,21.9132]
[1729436905617,0.93797661,159.97,159.93,6.2525]
[1729436908415,0.93797661,159.97,159.91,21.9132]
[1729436908719,0.93797661,159.97,159.92,6.253]
[1729436910021,0.93797661,159.97,159.91,21.9132]
[1729436910214,0.93797661,159.97,159.95,6.2515]
[1729436910831,6.52635681,159.98,159.91,22.0132]
[1729436911042,0.93787085,160.0,159.92,23.876884]
[1729436911225,0.93787085,160.0,159.98,6.2506]
[1729436913323,0.93787085,160.0,159.96,6.2512]
[1729436914351,0.93787085,160.0,159.91,21.9132]
[1729436914531,0.93787085,160.0,159.97,6.251]
[1729436915545,6.2504,159.99,159.94,6.2523]
[1729436916026,0.93787085,160.0,159.94,6.2523]
[1729436916228,20.0,159.99,159.94,6.2523]
[1729436920273,6.2505,159.99,159.94,6.2523]
[1729436920513,6.2516,159.96,159.91,28.1663]
[1729436920649,0.93794351,159.96,159.91,21.9132]
[1729436920848,0.93794351,159.96,159.92,6.253]
[1729436921554,7.18954351,159.96,159.91,28.1667]
[1729436921757,7.18974351,159.96,159.91,21.9132]
[1729436921962,7.18974351,159.96,159.91,28.1665]
[1729436922164,0.93794351,159.96,159.91,28.1665]
[1729436925567,0.93794351,159.96,159.91,21.9132]
[1729436925889,0.93794351,159.96,159.92,6.253]
[1729436926382,7.18944351,159.96,159.91,28.1666]
[1729436927380,0.93794351,159.96,159.91,28.1666]
[1729436927586,0.93794351,159.96,159.92,6.2531]
[1729436929092,0.93794351,159.96,159.92,6.2527]
[1729436929678,0.93794351,159.96,159.91,21.9132]
[1729436929890,0.93794351,159.96,159.93,6.2524]
[1729436930390,0.93794351,159.96,159.91,21.9132]
[1729436930391,0.93794351,159.96,159.94,6.2523]
[1729436930775,0.93794351,159.96,159.91,21.9132]
[1729436930967,0.93794351,159.96,159.93,6.2526]
[1729436931167,7.18944351,159.96,159.92,6.253]
[1729436933178,0.93794351,159.96,159.92,6.253]
[1729436934085,0.93794351,159.96,159.91,21.9132]
[1729436934282,6.2519,159.95,159.91,21.9132]
[1729436934485,6.2519,159.95,159.91,15.2764]
[1729436935076,6.2519,159.95,159.87,21.3107]
[1729436935273,7.4650153,159.96,159.87,21.3107]
[1729436935470,7.4650153,159.96,159.91,6.2531]
[1729436935976,7.4650153,159.96,159.92,6.2528]
[1729436938284,0.93794351,159.96,159.93,6.2527]
[1729436945597,0.93794351,159.96,159.93,6.2524]
[1729436946607,20.93794351,159.96,159.93,6.2524]
[1729436946779,0.93794351,159.96,159.87,21.3107]
[1729436947100,6.2519,159.95,159.9,6.2537]
[1729436947288,12.7792501,159.95,159.87,21.3107]
[1729436947604,6.5273501,159.95,159.88,6.2546]
[1729436947896,0.93794351,159.96,159.95,6.2519]
[1729436950091,0.93783131,159.96,159.95,6.2519]
[1729436952290,0.93783131,159.96,159.93,6.2525]
[1729436952492,0.93783131,159.96,159.94,6.2522]
[1729436953490,0.93783131,159.96,159.89,15.494]
[1729436953809,6.2514,159.97,159.89,15.494]
[1729436954608,7.18941967,159.97,159.92,6.2528]
[1729436955999,7.18941967,159.97,159.89,15.494]
[1729436956202,7.18941967,159.97,159.92,6.2527]
[1729436956709,0.93801967,159.97,159.89,15.494]
[1729436956888,6.2516,159.96,159.89,15.494]
[1729436957506,6.2516,159.96,159.92,6.253]
[1729436958319,6.2519,159.96,159.89,15.494]
[1729436958694,6.2519,159.96,159.92,6.2531]
[1729436960223,27.18931967,159.97,159.92,6.253]
[1729436962019,6.2528,159.93,159.87,6.2547]
[1729436962190,6.2528,159.93,159.81,1.28748644]
[1729436962191,6.2518,159.96,159.9,6.2538]
[1729436962521,26.2519,159.95,159.9,6.2538]
[1729436963718,7.80141171,159.96,159.87,23.776884]
[1729436963924,0.93801967,159.97,159.93,6.2526]
[1729436964090,0.93801967,159.97,159.88,16.6049]
[1729436964420,0.93801967,159.97,159.94,6.252]
[1729436965502,6.2523,159.95,159.88,16.5049]
[1729436965704,0.93801967,159.97,159.88,16.5049]
[1729436965705,20.0,159.94,159.88,16.5049]
[1729436965996,6.2529,159.93,159.88,22.7595]
[1729436966515,20.0,159.94,159.88,22.7595]
[1729436968102,26.2523,159.94,159.88,22.7595]
[1729436968421,26.2523,159.94,159.84,6.2559]
[1729436968422,6.2536,159.91,159.84,6.2559]
[1729436968598,20.0,159.9,159.84,6.2559]
[1729436971004,20.0,159.9,159.83,6.2564]
[1729436972125,6.2543,159.89,159.83,6.2564]
[1729436973832,6.2543,159.89,159.78,16.5049]
[1729436974006,6.2543,159.89,159.84,6.2562]
[1729436974524,0.93827654,159.89,159.84,6.2562]
[1729436975023,0.93827654,159.89,159.78,16.5049]
[1729436975024,7.46909651,159.89,159.85,6.2558]
[1729436976919,20.0,159.84,159.72,0.1]
[1729436977216,26.2565,159.84,159.71,16.5049]
[1729436977732,26.2571,159.82,159.76,6.2592]
[1729436979419,20.0,159.84,159.79,6.2578]
[1729436981029,20.93892406,159.84,159.79,6.2578]
[1729436981230,30.0,159.88,159.8,22.703]
[1729436981418,7.46909651,159.89,159.87,6.255]
[1729436982627,0.93827654,159.89,159.8,22.703]
[1729436984034,27.19267654,159.89,159.84,6.2561]
[1729436986120,0.93827654,159.89,159.85,6.2558]
[1729436991008,0.93827654,159.89,159.88,6.2546]
[1729436991311,0.93827654,159.89,159.8,22.703]
[1729436991833,0.93827654,159.89,159.87,6.2547]
[1729436993937,0.93827654,159.89,159.81,23.776884]
[1729436994131,0.93827654,159.89,159.8,22.703]
[1729436994132,0.93827654,159.89,159.87,6.2547]
[1729436995335,0.93827654,159.89,159.8,22.703]
[1729436995577,0.93827654,159.89,159.85,6.2558]
[1729436996009,0.93827654,159.89,159.86,6.2553]
[1729436996629,20.93827654,159.89,159.84,6.256]
[1729436998232,20.93827654,159.89,159.8,22.703]
[1729436998233,6.2548,159.88,159.83,6.2565]
[1729436998719,20.93827654,159.89,159.83,6.2565]
[1729436998920,20.93827654,159.89,159.8,22.703]
[1729436998921,6.2547,159.88,159.8,22.703]
[1729436999128,20.93827654,159.89,159.85,6.2558]
[1729436999332,27.19257654,159.89,159.85,6.2558]
[1729437000327,27.19257654,159.89,159.8,22.703]
[1729437001348,27.19257654,159.89,159.84,6.2561]
[1729437001850,20.0,159.87,159.75,21.331]
[1729437002060,6.2563,159.84,159.79,6.258]
[1729437002341,0.93884309,159.84,159.75,21.331]
[1729437002646,6.257,159.82,159.76,6.2593]
[1729437003026,7.19534309,159.84,159.75,21.331]
[1729437003230,20.0,159.83,159.78,6.2583]
[1729437004134,43.776884,159.8,159.73,6.2602]
[1729437004337,43.776884,159.8,159.69,15.2724]
[1729437004338,38.78,159.8,159.69,15.2724]
[1729437004668,13.84577802,159.83,159.7,0.1]
[1729437004669,20.0,159.82,159.7,0.1]
[1729437005345,20.0,159.82,159.78,6.2582]
[1729437005849,13.84577802,159.83,159.78,6.2582]
[1729437006022,13.84577802,159.83,159.79,6.2581]
[1729437007029,20.37624575,159.83,159.79,6.2581]
[1729437007436,26.53046773,159.83,159.82,6.257]
[1729437007638,0.93884309,159.84,159.83,6.2566]
[1729437008343,0.93884309,159.84,159.77,15.3724]
[1729437008538,0.93884309,159.84,159.83,6.2566]
[1729437011755,7.46694879,159.89,159.79,0.1]
[1729437011951,7.46694879,159.89,159.86,6.2552]
[1729437012128,6.2555,159.86,159.77,15.2724]
[1729437012330,20.0,159.86,159.77,15.2724]
[1729437012540,13.72124879,159.89,159.77,15.2724]
[1729437012750,7.46694879,159.89,159.81,0.1]
[1729437013058,0.93827654,159.89,159.88,6.2546]
[1729437013950,0.93827654,159.89,159.88,21.527]
[1729437015854,0.93827654,159.89,159.87,6.255]
[1729437016637,0.93827654,159.89,159.84,15.2724]
[1729437016845,0.93827654,159.89,159.85,6.2558]
[1729437017557,0.93827654,159.89,159.86,6.2554]
[1729437020448,0.93827654,159.89,159.84,15.2724]
[1729437020643,0.93827654,159.89,159.85,6.2557]
[1729437021047,19.71827654,159.89,159.85,6.2557]
[1729437021346,0.93827654,159.89,159.85,6.2557]
[1729437021548,0.93827654,159.89,159.84,15.2724]
[1729437021754,0.93827654,159.89,159.79,15.6589]
[1729437021930,20.93827654,159.89,159.79,15.6589]
[1729437022130,0.93827654,159.89,159.8,0.1]
[1729437022444,0.93827654,159.89,159.81,0.1]
[1729437022645,0.93827654,159.89,159.88,6.2546]
[1729437023350,20.79110007,159.97,159.95,6.2518]
[1729437023351,14.30050007,159.97,159.95,6.2518]
[1729437023560,6.5261249,159.97,159.95,6.2516]
[1729437023934,7.77437517,160.01,159.97,6.2511]
[1729437024341,7.77437517,160.01,159.9,6.3704]
[1729437024342,15.23667534,160.01,159.99,6.2501]
[1729437024641,7.46230017,160.01,159.99,6.2501]
[1729437027661,7.46230017,160.01,159.96,15.6589]
[1729437027866,7.46230017,160.01,160.0,6.25]
[1729437028037,7.46230017,160.01,159.99,6.2503]
[1729437029346,7.46230017,160.01,160.0,6.25]
[1729437029551,0.93788021,160.01,160.0,6.25]
[1729437032563,0.6207267,160.08,160.07,6.2472]
[1729437033144,0.6207267,160.08,160.04,15.6589]
[1729437033466,0.6207267,160.08,160.0,15.6589]
[1729437034257,6.8675267,160.08,160.03,6.2488]
[1729437034459,0.6207267,160.08,160.03,6.2488]
[1729437035359,6.8676267,160.08,160.03,6.2488]
[1729437039368,0.6207267,160.08,160.0,15.6589]
[1729437039559,0.6207267,160.08,160.04,6.2481]
[1729437039965,0.6207267,160.08,160.07,6.2472]
[1729437041052,0.6207267,160.08,160.07,21.71]
[1729437041344,0.93758594,160.1,160.07,21.71]
[1729437041345,0.93758594,160.1,160.09,6.2464]
[1729437041763,0.93758594,160.1,160.09,30.023284]
[1729437042057,20.3401882,160.17,160.15,6.2437]
[1729437042364,13.81830256,160.17,160.15,6.2437]
[1729437042548,13.81830256,160.17,160.16,6.2437]
[1729437043165,7.45771507,160.2,160.16,6.2437]
[1729437043362,7.45771507,160.2,160.1,0.1]
[1729437043363,7.45771507,160.2,160.17,6.243]
[1729437043567,7.45771507,160.2,160.11,0.1]
[1729437043741,7.45771507,160.2,160.19,6.2425]
[1729437044365,0.93691415,160.2,160.19,6.2425]
[1729437045359,8.07614569,160.24,160.19,6.2425]
[1729437045645,14.31674569,160.24,160.19,6.2425]
[1729437045843,26.2411,160.23,160.16,6.2433]
[1729437046039,6.2416,160.22,160.16,6.2433]
[1729437046965,20.0,160.2,160.14,6.2443]
[1729437047156,20.93675075,160.2,160.14,6.2443]
[1729437047353,20.93675075,160.2,160.13,15.4628]
[1729437047354,26.243,160.18,160.13,15.4628]
[1729437047549,26.243,160.18,160.12,6.245]
[1729437048571,6.2435,160.17,160.1,6.246]
[1729437048784,26.2441,160.16,160.1,6.246]
[1729437049367,20.0,160.16,160.1,6.246]
[1729437049672,7.18105717,160.15,160.1,6.246]
[1729437050769,7.18105717,160.15,160.09,15.4628]
[1729437050959,6.2453,160.12,160.04,6.0657]
[1729437051159,6.2449,160.13,160.07,6.2469]
[1729437051465,6.2449,160.13,160.08,6.2468]
[1729437051986,0.93705474,160.15,160.04,6.0657]
[1729437052268,20.0,160.14,160.1,6.246]
[1729437052574,6.2445,160.14,160.09,6.2464]
[1729437053262,0.93705474,160.15,160.04,6.0657]
[1729437053453,6.2449,160.13,160.07,6.2469]
[1729437053855,20.0,160.13,160.05,6.248]
[1729437054268,6.246,160.11,160.05,6.248]
[1729437054472,6.2465,160.09,160.04,6.2482]
[1729437054759,6.2469,160.08,160.03,15.4628]
[1729437054969,7.46229091,160.09,160.03,15.4628]
[1729437055478,0.93719948,160.09,160.07,6.2472]
[1729437055650,7.46153095,160.09,160.07,6.2472]
[1729437056153,0.93719948,160.09,160.07,6.2472]
[1729437058572,0.93719948,160.09,160.08,6.2468]
[1729437060856,6.52280098,160.14,160.08,30.191784]
[1729437061053,6.52280098,160.14,160.13,6.2449]
[1729437061254,20.05872077,160.19,160.15,6.2439]
[1729437061255,13.81612077,160.19,160.15,6.2439]
[1729437061460,6.2432,160.18,160.12,6.2453]
[1729437061674,6.52137578,160.17,160.11,15.7506]
[1729437061879,6.2443,160.15,160.08,6.4149]
[1729437062179,6.2443,160.15,160.1,6.246]
[1729437062553,26.23831184,160.17,160.1,6.246]
[1729437062554,6.2438,160.16,160.1,6.246]
[1729437062975,26.2442,160.15,160.1,6.246]
[1729437063354,20.0,160.16,160.08,6.4149]
[1729437063759,6.2444,160.15,160.08,6.4149]
[1729437064464,38.78,160.16,160.07,15.7506]
[1729437064667,26.2449,160.14,160.08,6.2465]
[1729437064858,27.18208517,160.14,160.08,6.2465]
[1729437065177,0.93718517,160.14,160.07,15.7506]
[1729437065564,7.18198517,160.14,160.09,6.2464]
[1729437065759,7.18198517,160.14,160.07,15.7506]
[1729437065760,0.93718517,160.14,160.07,15.7506]
[1729437065959,0.93718517,160.14,160.11,6.2456]
[1729437066667,0.93718517,160.14,160.07,15.7506]
[1729437067965,0.93718517,160.14,160.09,0.1]
[1729437068152,0.93718517,160.14,160.08,23.876884]
[1729437068462,0.93718517,160.14,160.13,6.2449]
[1729437069080,0.93718517,160.14,160.13,28.4104]
[1729437069258,0.93693606,160.17,160.16,6.2437]
[1729437071665,6.51910007,160.23,160.22,6.2414]
[1729437071983,0.6207267,160.24,160.22,6.2414]
[1729437072183,0.6207267,160.24,160.17,23.776884]
[1729437072484,0.6207267,160.24,160.23,6.241]
[1729437074975,0.6207267,160.24,160.22,6.2413]
[1729437075480,0.6207267,160.24,160.2,6.2418]
[1729437075984,0.6207267,160.24,160.21,6.2417]
[1729437084478,0.6207267,160.24,160.15,15.7506]
[1729437084479,6.241,160.23,160.18,6.2427]
[1729437084693,6.8616267,160.24,160.19,6.2425]
[1729437085972,0.6207267,160.24,160.15,15.7506]
[1729437086178,0.6207267,160.24,160.2,6.242]
[1729437087773,0.6207267,160.24,160.15,15.7506]
[1729437088080,0.6207267,160.24,160.22,6.2411]
[1729437088587,0.6207267,160.24,160.23,6.241]
[1729437090286,6.8613267,160.24,160.15,15.7506]
[1729437090670,6.8613267,160.24,160.2,6.2421]
[1729437090870,0.6207267,160.24,160.2,6.2421]
[1729437092064,0.6207267,160.24,160.15,15.7506]
[1729437092282,0.6207267,160.24,160.21,6.2414]
[1729437092486,0.6207267,160.24,160.15,15.7506]
[1729437092683,0.6207267,160.24,160.2,6.2421]
[1729437094276,0.6207267,160.24,160.17,6.2431]
[1729437094277,6.2416,160.22,160.17,6.2431]
[1729437094600,13.69775401,160.22,160.17,6.2431]
[1729437095598,13.69775401,160.22,160.15,15.7506]
[1729437095993,13.69775401,160.22,160.18,6.2429]
[1729437096376,7.17814612,160.22,160.18,6.2429]
[1729437096570,0.93654612,160.22,160.18,6.2429]
[1729437096791,0.93654612,160.22,160.19,6.2422]
[1729437096994,0.93654612,160.22,160.2,6.2421]
[1729437097298,0.93654612,160.22,160.16,6.2437]
[1729437097493,0.93654612,160.22,160.2,6.2418]
[1729437097801,0.93654612,160.22,160.21,6.2418]
[1729437098997,0.93654612,160.22,160.15,15.7506]
[1729437099492,0.93654612,160.22,160.18,6.2427]
[1729437100276,0.93654612,160.22,160.19,6.2425]
[1729437101593,0.93654612,160.22,160.15,15.7506]
[1729437101800,0.93654612,160.22,160.2,6.2421]
[1729437105496,0.93654612,160.22,160.13,6.5149]
[1729437105497,0.93654612,160.22,160.21,28.2711]
[1729437108909,0.6207267,160.24,160.21,22.0293]
[1729437109199,0.6207267,160.24,160.22,6.241]
[1729437109783,0.6207267,160.24,160.23,6.241]
[1729437110686,0.6207267,160.24,160.21,15.5677]
[1729437111003,0.6207267,160.24,160.17,22.0293]
[1729437111190,0.6207267,160.24,160.2,6.2418]
[1729437111393,0.6207267,160.24,160.21,6.2418]
[1729437113007,0.6207267,160.24,160.23,6.241]
[1729437113189,0.6207267,160.24,160.23,21.8087]
[1729437114183,15.2221797,160.31,160.28,6.2387]
[1729437114383,7.45284523,160.31,160.28,6.2387]
[1729437115306,7.45284523,160.31,160.29,6.2386]
[1729437117798,7.45284523,160.31,160.27,6.239]
[1729437117987,7.45284523,160.31,160.28,6.239]
[1729437120306,7.45284523,160.31,160.23,22.0293]
[1729437120511,0.93600231,160.31,160.23,22.0293]
[1729437120718,0.93600231,160.31,160.3,6.2383]
[1729437127694,6.51524925,160.34,160.31,6.2375]
[1729437128297,6.51524925,160.34,160.23,22.0293]
[1729437128505,13.68814381,160.34,160.29,6.2383]
[1729437128711,13.68814381,160.34,160.3,6.2382]
[1729437132721,7.45124381,160.34,160.23,22.0293]
[1729437132922,7.45124381,160.34,160.24,23.876884]
[1729437133118,7.45124381,160.34,160.33,6.2371]
[1729437133315,0.93599456,160.34,160.33,6.2371]
[1729437141037,7.1332357,160.4,160.37,6.2355]
[1729437141528,0.6207267,160.4,160.38,6.2351]
[1729437144415,0.6207267,160.4,160.32,16.0911]
[1729437144620,0.6207267,160.4,160.39,6.2348]
[1729437145328,0.6207267,160.4,160.39,22.2278]
[1729437146414,0.6207267,160.4,160.39,46.004684]
[1729437146625,0.93555163,160.42,160.41,6.234]
[1729437147131,6.231,160.49,160.44,6.2327]
[1729437148232,20.0,160.49,160.44,6.2327]
[1729437148425,20.0,160.49,160.45,6.2323]
[1729437149008,7.44539113,160.5,160.39,15.993]
[1729437149213,7.44539113,160.5,160.46,6.2319]
[1729437149736,0.93520355,160.5,160.47,6.2313]
[1729437150335,0.93520355,160.5,160.49,6.2309]
[1729437150840,6.50794872,160.52,160.49,6.2309]
[1729437151012,0.93486512,160.52,160.51,6.2301]
[1729437152325,0.93486512,160.52,160.46,15.993]
[1729437152919,0.93486512,160.52,160.49,6.2306]
[1729437154539,0.93486512,160.52,160.5,6.2304]
[1729437154727,6.50689284,160.54,160.52,6.2295]
[1729437154928,20.6207267,160.56,160.52,6.2295]
[1729437155335,20.6207267,160.56,160.46,15.993]
[1729437155528,26.8490267,160.56,160.5,6.2301]
[1729437155840,27.78370984,160.56,160.51,6.2301]
[1729437157429,21.55540984,160.56,160.49,15.5765]
[1729437157626,6.2286,160.55,160.5,6.2305]
[1729437158031,21.55540984,160.56,160.49,21.8073]
[1729437158032,6.229,160.54,160.49,21.8073]
[1729437159627,6.2286,160.55,160.5,6.2302]
[1729437162745,6.23,160.52,160.47,6.2314]
[1729437162941,7.16485752,160.52,160.47,6.2314]
[1729437164020,0.93485752,160.52,160.47,6.2314]
[1729437164224,6.2301,160.51,160.47,6.2314]
[1729437169637,7.16769193,160.45,160.41,15.5844]
[1729437170031,0.93519193,160.45,160.37,15.8767]
[1729437170237,6.2335,160.43,160.38,6.2351]
[1729437170744,6.2335,160.43,160.38,21.8229]
[1729437170954,6.2329,160.44,160.39,6.2347]
[1729437171548,0.93519193,160.45,160.41,6.234]
[1729437171957,7.16759193,160.45,160.4,6.2344]
[1729437172828,6.2329,160.44,160.39,21.8214]
[1729437173549,23.776884,160.44,160.37,22.1119]
[1729437173733,20.0,160.43,160.37,22.1119]
[1729437174743,6.2336,160.42,160.37,22.1119]
[1729437175338,7.1689852,160.42,160.37,22.1119]
[1729437177538,0.9353852,160.42,160.37,15.8767]
[1729437177853,0.9353852,160.42,160.41,6.234]
[1729437181167,0.9353852,160.42,160.37,15.8767]
[1729437181357,0.9353852,160.42,160.39,6.2347]
[1729437188175,0.9353852,160.42,160.38,15.5879]
[1729437188353,0.9353852,160.42,160.38,21.823]
[1729437189277,0.9353852,160.42,160.39,6.2346]
[1729437190558,0.9353852,160.42,160.37,15.8767]
[1729437191477,0.9353852,160.42,160.41,6.234]
[1729437193665,0.93519193,160.45,160.44,6.2328]
[1729437193880,0.93519193,160.45,160.44,22.2731]
[1729437195078,6.2294,160.53,160.48,6.2312]
[1729437195292,20.0,160.52,160.48,6.2312]
[1729437195663,20.93496052,160.52,160.48,6.2312]
[1729437197683,27.16506052,160.52,160.47,6.2316]
[1729437197986,6.2305,160.5,160.46,15.5792]
[1729437198169,20.93496052,160.52,160.43,6.5629]
[1729437198170,6.2313,160.48,160.43,6.2331]
[1729437198374,7.16633166,160.48,160.43,6.2331]
[1729437198866,6.2323,160.46,160.42,15.584]
[1729437203492,6.2326,160.45,160.4,6.2343]
[1729437204572,7.16772891,160.45,160.4,6.2343]
[1729437204770,7.16772891,160.45,160.41,6.234]
[1729437204976,6.2329,160.44,160.39,15.5869]
[1729437205190,23.776884,160.44,160.35,15.5901]
[1729437205392,6.2342,160.41,160.36,6.2356]
[1729437205583,6.2345,160.4,160.35,21.8263]
[1729437205781,42.496884,160.44,160.35,15.5901]
[1729437205987,6.2359,160.37,160.3,15.407]
[1729437206172,6.2359,160.37,160.32,6.2371]
[1729437206369,6.2352,160.38,160.33,6.2371]
[1729437210476,20.0,160.38,160.31,15.5944]
[1729437210696,6.2364,160.35,160.31,15.5944]
[1729437210899,6.2369,160.34,160.3,15.407]
[1729437211209,43.776884,160.38,160.28,6.239]
[1729437211507,43.776884,160.36,160.27,15.5979]
[1729437211672,44.71283413,160.36,160.28,6.2387]
[1729437212007,44.71283413,160.36,160.27,15.5979]
[1729437212193,44.71283413,160.36,160.27,21.8373]
[1729437212497,6.2378,160.32,160.27,21.8373]